fUSD/lending_fUSD_20241108
["ID","MTS","AMOUNT","RATE_DAILY","PERIOD"]
[341642191,1731055839045,-5469.99360272,0.00026941,2]
[341642193,1731055839054,-150.0,0.00026942,2]
[341642195,1731055839063,-42100.86493558,0.00026943,2]
[341642197,1731055839072,-2330.12761371,0.00026943,2]
[341642199,1731055839082,-42100.86493558,0.00026946,2]
[341642201,1731055839091,-150.0,0.00026946,2]
[341642203,1731055839101,-27216.17964578,0.00026947,2]
[341642204,1731055839110,-27216.17964578,0.00026948,2]
[341642205,1731055839120,-150.110806,0.00026948,3]
[341642206,1731055839129,-150.110806,0.00026948,4]
[341642207,1731055839139,-150.0,0.0002695,2]
[341642208,1731055839148,-42100.86493558,0.00026951,2]
[341642209,1731055839159,-150.0,0.00026952,2]
[341642210,1731055839168,-2330.12761371,0.00026954,2]
[341642211,1731055839177,-150.0,0.00026954,2]
[341642212,1731055839187,-22595.97832736,0.00026954,2]
[341642213,1731055839196,-150.0,0.00026956,2]
[341642214,1731055839206,-19614.81161963,0.00026957,2]
[341642215,1731055839215,-150.110806,0.00026958,3]
[341642216,1731055839225,-150.110806,0.00026958,4]
[341642218,1731055839234,-27216.17964578,0.00026959,2]
[341642219,1731055839243,-958.69167944,0.0002696,2]
[341642221,1731055839253,-2330.12761371,0.0002696,2]
[341642223,1731055839262,-504.6890554,0.0002696,2]
[341642225,1731055839271,-1889.4397081,0.0002696,2]
[341642227,1731055839280,-2723.3135268,0.0002696,2]
[341642229,1731055839289,-3891.9845406,0.0002696,2]
[341642231,1731055839298,-8092.0059804,0.0002696,2]
[341642233,1731055839307,-4290.9523597,0.0002696,2]
[341642235,1731055839317,-1592.00502,0.0002696,2]
[341642237,1731055839326,-2298.53552545,0.0002696,2]
[341642239,1731055839336,-2330.12761371,0.0002696,2]
[341642241,1731055839345,-9245.89507557,0.00026961,2]
[341642243,1731055839354,-19614.81161963,0.00026961,2]
[341642245,1731055839364,-27216.17964578,0.00026964,2]
[341642247,1731055839373,-150.0,0.00026964,2]
[341642249,1731055839382,-5469.99360272,0.00026965,2]
[341642251,1731055839391,-9245.89507557,0.00026965,2]
[341642253,1731055839401,-150.0,0.00026965,2]
[341642255,1731055839411,-42100.86493558,0.00026965,2]
[341642257,1731055839420,-958.69167944,0.00026966,2]
[341642259,1731055839429,-150.0,0.00026966,2]
[341642261,1731055839438,-1500.0,0.00026966,2]
[341642263,1731055839448,-958.69167944,0.00026967,2]
[341642265,1731055839457,-5469.99360272,0.00026967,2]
[341642267,1731055839466,-150.110806,0.00026968,4]
[341642270,1731055839476,-5469.99360272,0.00026969,2]
[341642272,1731055839486,-150.0,0.00026969,2]
[341642274,1731055839497,-2298.53552545,0.0002697,2]
[341642276,1731055839506,-150.0,0.0002697,2]
[341642278,1731055839515,-150.0,0.0002697,2]
[341642280,1731055839525,-5469.99360272,0.00026971,2]
[341642282,1731055839534,-2330.12761371,0.00026971,2]
[341642284,1731055839544,-150.0,0.00026971,2]
[341642286,1731055839553,-252.92742796,0.00026972,2]
[341642288,1731055839563,-3586.9495056,0.00026972,2]
[341642290,1731055839572,-500.0,0.00026973,2]
[341642292,1731055839581,-500.0,0.00026973,2]
[341642294,1731055839591,-2000.0,0.00026973,2]
[341642296,1731055839600,-200.0,0.00026973,2]
[341642298,1731055839609,-2000.0,0.00026973,2]
[341642300,1731055839618,-9245.89507557,0.00026973,2]
[341642302,1731055839627,-80692.81568097,0.00026973,2]
[341642304,1731055839638,-150.0,0.00026974,2]
[341642306,1731055839651,-6354.77540902,0.00026975,2]
[341642308,1731055839660,-7447.55413459,0.00026975,2]
[341642373,1731055840254,-424.2079092,0.00026975,2]
[341642390,1731055840417,-1374.13303178,0.00026975,2]
[341642410,1731055840600,-2019.63106282,0.00026976,2]
[341642711,1731055843472,-1243.62602267,0.00026976,2]
[341642713,1731055843483,-19614.81161963,0.00026976,2]
[341642715,1731055843492,-6354.77540902,0.00026977,2]
[341642717,1731055843502,-150.110806,0.00026978,3]
[341642719,1731055843511,-1500.0,0.00026978,2]
[341642721,1731055843520,-401101.22362917,0.00026979,2]
[341643033,1731055846592,-1385.31154166,0.00025251,2]
[341643034,1731055846602,-2863.43495834,0.00026979,2]
[341643384,1731055852447,150.0,0.00019371,2]
[341643470,1731056053950,173.62,0.00020417,2]
[341643472,1731056064502,158.42,0.00015342,2]
[341643473,1731056101387,276.0,0.00019725,2]
[341643474,1731056141427,450.0,0.00021,2]
[341643475,1731056261831,-500.0,0.00023,2]
[341643476,1731056261853,-1017.57,0.0002398,2]
[341643477,1731056261875,-299.133948,0.00024079,2]
[341643478,1731056261898,-260.55294632,0.000241,2]
[341643479,1731056261920,-2534.0,0.000242,2]
[341643480,1731056261940,-173.36,0.00024594,2]
[341643481,1731056261963,-260.55294631,0.00024691,2]
[341643482,1731056261983,-6039.03,0.000249,2]
[341643483,1731056262003,-549.58,0.000249,2]
[341643484,1731056262026,-550.0,0.00025,2]
[341643485,1731056262047,-175.0,0.00025,2]
[341643486,1731056262405,2837.17115738,0.000242,2]
[341643487,1731056264172,9896.089,0.00021012,2]
[341643490,1731056461657,3437.71682201,0.00024,20]
[341643491,1731056463786,2474.02225,0.0002095,2]
[341643492,1731056632296,179.38,0.00015342,2]
[341643494,1731056829153,-181.65810412,0.00023,2]
[341643495,1731056831115,-18.34189588,0.00023,2]
[341643496,1731056831140,-238.29177528,0.00023193,2]
[341643497,1731056846250,-158.1902287,0.00023193,2]
[341643498,1731056854402,-621.08799602,0.00023193,2]
[341643499,1731056854423,-260.55294632,0.00023331,2]
[341643500,1731056854444,-2.92170966,0.00023431,2]
[341643501,1731056866692,-4079.37393221,0.00023431,2]
[341643502,1731056866739,-2837.17115738,0.00023531,2]
[341643503,1731056866784,-173.38,0.00023531,2]
[341643504,1731056866826,-1490.12127851,0.00023531,2]
[341643505,1731056866869,-260.55294631,0.00023887,2]
[341643506,1731056866910,-299.133948,0.00023979,2]
[341643507,1731056866951,-150.99,0.000241,2]
[341643508,1731056866992,-549.58,0.000241,2]
[341643509,1731056867035,-2534.0,0.000242,2]
[341643510,1731056867079,-6039.03,0.000242,2]
[341643511,1731056867120,-260.55294631,0.00024443,2]
[341643512,1731056867163,-1000.0,0.00024496,2]
[341643513,1731056867205,-500.0,0.00024543,2]
[341643514,1731056867249,-195.8,0.00024548,2]
[341643515,1731056867292,-1428.29,0.00024559,2]
[341643516,1731056867334,-2820.36,0.00024564,2]
[341643517,1731056867375,-500.0,0.0002457,2]
[341643518,1731056867419,-250.0,0.000246,2]
[341643519,1731056867462,-250.0,0.00024604,2]
[341643520,1731056867504,-164.87,0.00024723,2]
[341643521,1731056867548,-2599.0703,0.00024873,2]
[341643522,1731056867591,-1428.29,0.00024953,2]
[341643523,1731056867633,-1600.0,0.00025,2]
[341643524,1731056867674,-175.0,0.00025,2]
[341643525,1731056867717,-5446.43,0.00025073,2]
[341643526,1731056867759,-161.47,0.00025073,2]
[341643527,1731056867801,-299.55,0.00025111,2]
[341643528,1731056867842,-250.0,0.00025111,2]
[341643529,1731056867898,-1178.69,0.00025111,2]
[341643530,1731056867955,-593.96,0.00025118,2]
[341643531,1731056868016,-500.0,0.00025205,7]
[341643532,1731056868077,-500.0,0.00025205,7]
[341643533,1731056868138,-509.47543421,0.00025205,7]
[341643534,1731056868196,-810.72,0.00025264,2]
[341643535,1731056868254,-280.0,0.000253,10]
[341643536,1731056868307,-1428.29,0.00025348,2]
[341643537,1731056868363,-189.34,0.00025381,30]
[341643538,1731056868420,-1017.57,0.00025457,2]
[341643539,1731056868474,-625.34,0.00025521,2]
[341643540,1731056869059,-8693.21,0.00025537,2]
[341643541,1731056869103,-750.0,0.00025625,2]
[341643542,1731056869147,-151.78,0.00025643,2]
[341643543,1731056869193,-1428.29,0.00025742,2]
[341643544,1731056869237,-165.87,0.00025842,2]
[341643545,1731056869282,-760.84,0.00025888,120]
[341643546,1731056869333,-217.79,0.00026098,2]
[341643547,1731056869376,-1428.29,0.00026137,2]
[341643548,1731056869419,-865.4,0.00026192,2]
[341643549,1731056869462,-183.54,0.00026192,2]
[341643550,1731056869504,-432.7,0.00026192,2]
[341643551,1731056869551,-362.0,0.00026192,2]
[341643552,1731056869593,-362.0,0.00026192,2]
[341643553,1731056869635,-159.530207,0.00026301,2]
[341643554,1731056869678,-242.21,0.00026301,2]
[341643555,1731056869721,-31639.0,0.00026438,2]
[341643556,1731056869764,-2217.7703,0.000265,2]
[341643557,1731056869808,-1428.29,0.00026532,2]
[341643558,1731056869850,-1000.0,0.00026597,2]
[341643559,1731056869893,-396.83253195,0.00026617,2]
[341643560,1731056869935,-396.83253192,0.00026648,2]
[341643561,1731056870091,-1000.0,0.00026673,2]
[341643562,1731056870134,-396.83253192,0.0002668,2]
[341643563,1731056870179,-500.0,0.00026696,2]
[341643564,1731056870221,-500.0,0.00026696,2]
[341643565,1731056870265,-644.67912327,0.00026696,2]
[341643566,1731056870306,-1196.535,0.00026697,2]
[341643567,1731056870350,-198.3094,0.00026697,2]
[341643568,1731056870392,-30898.2086,0.00026697,2]
[341643569,1731056870434,-113793.5925,0.00026697,2]
[341643570,1731056870478,-161.9160433,0.00026697,2]
[341643571,1731056870520,-2000.0,0.0002671,2]
[341643572,1731056870568,-396.83253192,0.00026711,2]
[341643573,1731056870613,-150.0,0.00026715,2]
[341643574,1731056870657,-150.0,0.00026719,2]
[341643575,1731056870700,-150.0,0.0002674,2]
[341643576,1731056870742,-396.83253192,0.00026743,2]
[341643577,1731056870784,-150.0,0.00026751,2]
[341643578,1731056870828,-150.0,0.00026753,2]
[341643579,1731056870873,-150.0,0.00026755,2]
[341643580,1731056870916,-150.0,0.00026756,2]
[341643581,1731056870957,-150.0,0.00026759,2]
[341643582,1731056871128,-2000.0,0.0002676,5]
[341643583,1731056871172,-235.80909282,0.00026763,2]
[341643584,1731056871217,-150.0,0.00026766,2]
[341643585,1731056871260,-319.42115503,0.0002677,2]
[341643586,1731056871303,-500.0,0.00026773,2]
[341643587,1731056871346,-500.0,0.00026773,2]
[341643588,1731056871391,-150.0,0.00026774,2]
[341643589,1731056871436,-396.83253192,0.00026774,2]
[341643590,1731056871480,-1500.0,0.00026781,2]
[341643591,1731056871525,-150.0,0.00026786,2]
[341643592,1731056871574,-150.0,0.00026787,2]
[341643593,1731056871618,-150.0,0.00026791,2]
[341643594,1731056871663,-150.0,0.00026792,2]
[341643595,1731056871709,-5646.0,0.00026797,2]
[341643596,1731056871754,-177869.889,0.00026797,2]
[341643597,1731056871798,-4629.0973,0.00026797,2]
[341643598,1731056871844,-150.0,0.000268,2]
[341643599,1731056871888,-396.83253192,0.00026806,2]
[341643600,1731056871932,-150.0,0.00026808,2]
[341643601,1731056871976,-150.0,0.00026809,2]
[341643602,1731056872016,-319.42115503,0.00026813,2]
[341643603,1731056872192,-150.0,0.00026816,2]
[341643604,1731056872240,-150.0,0.00026819,2]
[341643605,1731056872284,-300.0,0.0002682,2]
[341643606,1731056872330,-300.0,0.00026823,2]
[341643607,1731056872372,-150.0,0.00026827,2]
[341643608,1731056872414,-150.0,0.00026829,2]
[341643609,1731056872456,-150.0,0.00026829,2]
[341643610,1731056872498,-150.0,0.00026833,2]
[341643611,1731056872543,-150.0,0.00026834,2]
[341643612,1731056872587,-150.0,0.00026836,2]
[341643613,1731056872630,-396.83253192,0.00026837,2]
[341643614,1731056872674,-150.0,0.0002684,2]
[341643615,1731056872716,-500.0,0.00026849,7]
[341643616,1731056872758,-758.21085718,0.00026851,2]
[341643617,1731056872801,-319.42115503,0.00026857,2]
[341643618,1731056872844,-150.0,0.00026857,2]
[341643619,1731056872887,-500.0,0.00026865,2]
[341643620,1731056872929,-396.83253192,0.00026869,2]
[341643621,1731056872972,-150.0,0.00026869,2]
[341643622,1731056873014,-300.0,0.0002687,2]
[341643623,1731056873056,-300.0,0.0002687,2]
[341643624,1731056873228,-500.0,0.00026874,2]
[341643625,1731056873273,-300.0,0.00026877,2]
[341643626,1731056873317,-150.0,0.00026879,2]
[341643627,1731056873360,-150.0,0.00026882,2]
[341643628,1731056873402,-500.0,0.00026882,2]
[341643629,1731056873445,-150.0,0.00026887,2]
[341643630,1731056873488,-150.0,0.00026889,2]
[341643631,1731056873531,-150.0,0.0002689,2]
[341643632,1731056873572,-8500.0,0.00026891,3]
[341643633,1731056873614,-500.0,0.00026891,2]
[341643634,1731056873658,-300.0,0.00026892,2]
[341643635,1731056873703,-150.0,0.00026894,2]
[341643636,1731056873747,-1455.365,0.00026899,14]
[341643637,1731056873790,-166.62741957,0.00026899,14]
[341643638,1731056873835,-8500.0,0.000269,3]
[341643639,1731056873877,-500.0,0.000269,2]
[341643640,1731056873919,-396.83253192,0.000269,2]
[341643641,1731056873961,-398.0,0.000269,10]
[341643642,1731056874002,-319.42115503,0.000269,2]
[341643643,1731056874043,-11710.60063487,0.000269,2]
[341643644,1731056874086,-207.03016123,0.000269,2]
[341643645,1731056874127,-204.6780203,0.000269,2]
[341643646,1731056874295,-300.0,0.00026901,2]
[341643647,1731056874338,-150.0,0.0002691,2]
[341643648,1731056874381,-150.0,0.00026911,2]
[341643649,1731056874421,-319.56389315,0.00026919,2]
[341643650,1731056874462,-3269.13526993,0.00026919,2]
[341643651,1731056874503,-200.0,0.00026921,2]
[341643652,1731056874545,-3269.13526993,0.00026922,2]
[341643653,1731056874587,-766.17850849,0.00026923,2]
[341643654,1731056874630,-9072.05988193,0.00026923,2]
[341643655,1731056874674,-766.17850848,0.00026924,2]
[341643656,1731056874718,-4536.02994097,0.00026926,2]
[341643657,1731056874761,-1428.29,0.00026926,2]
[341643658,1731056874804,-1241.25902243,0.00026927,2]
[341643659,1731056874847,-10304.26692777,0.00026927,2]
[341643660,1731056874890,-75441.32594882,0.00026927,2]
[341643661,1731056874932,-1241.25902243,0.00026929,2]
[341643662,1731056874973,-388.35460228,0.00026929,2]
[341643663,1731056875015,-1059.12923484,0.00026931,2]
[341643664,1731056875058,-766.17850849,0.00026932,2]
[341643665,1731056875100,-10304.26692777,0.00026933,2]
[341643666,1731056875143,-1748.25351638,0.00026933,2]
[341643667,1731056875323,-4622.94753778,0.00026933,2]
[341643668,1731056875364,-319.56389315,0.00026934,2]
[341643669,1731056875405,-200.0,0.00026934,2]
[341643670,1731056875448,-4622.94753778,0.00026935,2]
[341643671,1731056875490,-4924.38454325,0.00026935,2]
[341643672,1731056875532,-200.0,0.00026936,2]
[341643673,1731056875576,-766.17850848,0.00026936,2]
[341643674,1731056875618,-10304.26692777,0.00026936,2]
[341643675,1731056875660,-388.35460228,0.00026936,2]
[341643676,1731056875704,-3269.13526993,0.00026937,2]
[341643677,1731056875745,-1241.25902243,0.00026937,2]
[341643678,1731056875789,-13932.60849435,0.00026938,2]
[341643679,1731056875830,-319.56389315,0.00026938,2]
[341643680,1731056875872,-10782.80721049,0.00026938,2]
[341643681,1731056875915,-10782.80721049,0.00026939,2]
[341643682,1731056875955,-766.17850849,0.00026939,2]
[341643683,1731056875996,-200.0,0.00026939,2]
[341643684,1731056876039,-4622.94753778,0.0002694,2]
[341643685,1731056876082,-4924.38454325,0.0002694,2]
[341643686,1731056876124,-10304.26692777,0.0002694,2]
[341643687,1731056876165,-1059.12923484,0.0002694,2]
[341643688,1731056876365,-3269.13526993,0.00026941,2]
[341643689,1731056876408,-766.17850848,0.00026941,2]
[341643690,1731056876450,-9072.05988193,0.00026941,2]
[341643691,1731056876494,-75441.32594882,0.00026943,2]
[341643692,1731056876536,-200.0,0.00026945,2]
[341643693,1731056876581,-3269.13526993,0.00026945,2]
[341643694,1731056876623,-1500.0,0.00026945,2]
[341643695,1731056876667,-21962.09806825,0.00026946,2]
[341643696,1731056876709,-18761.54175903,0.00026946,2]
[341643697,1731056876750,-4622.94753778,0.00026946,2]
[341643698,1731056876792,-75441.32594882,0.00026947,2]
[341643699,1731056876834,-3269.13526993,0.00026947,2]
[341643700,1731056876874,-1059.12923484,0.00026947,2]
[341643701,1731056876917,-150.0,0.00026948,2]
[341643702,1731056876957,-319.56389315,0.00026948,2]
[341643703,1731056876997,-18761.54175903,0.00026949,2]
[341643704,1731056877040,-388.35460228,0.0002695,2]
[341643705,1731056877080,-200.0,0.0002695,2]
[341643706,1731056877125,-10304.26692777,0.0002695,2]
[341643707,1731056877166,-150.0,0.0002695,4]
[341643708,1731056877210,-150.0,0.00026951,2]
[341643709,1731056877252,-4924.38454325,0.00026951,2]
[341643710,1731056877428,-1748.25351638,0.00026952,2]
[341643711,1731056877473,-150.0,0.00026953,2]
[341643712,1731056877515,-10304.26692777,0.00026953,2]
[341643713,1731056877559,-150.0,0.00026954,2]
[341643714,1731056877600,-388.35460228,0.00026954,2]
[341643715,1731056877642,-1059.12923484,0.00026956,2]
[341643716,1731056877683,-388.35460228,0.00026957,2]
[341643717,1731056877724,-18761.54175903,0.00026957,2]
[341643718,1731056877764,-200.0,0.00026957,2]
[341643719,1731056877806,-13932.60849435,0.00026958,2]
[341643720,1731056877849,-10782.80721049,0.00026958,2]
[341643721,1731056877893,-150.0,0.00026958,2]
[341643722,1731056877935,-300.0,0.00026959,2]
[341643723,1731056877976,-10782.80721049,0.0002696,2]
[341643724,1731056878019,-150.0,0.0002696,2]
[341643725,1731056878061,-150.0,0.00026961,2]
[341643726,1731056878104,-4536.02994097,0.00026961,2]
[341643727,1731056878145,-18761.54175903,0.00026962,2]
[341643728,1731056878188,-388.35460228,0.00026962,2]
[341643729,1731056878229,-1059.12923484,0.00026962,2]
[341643730,1731056878269,-200.0,0.00026962,2]
[341643731,1731056878430,-766.17850848,0.00026962,2]
[341643732,1731056878473,-1241.25902243,0.00026963,2]
[341643733,1731056878513,-1241.25902243,0.00026964,2]
[341643734,1731056878556,-150.0,0.00026964,2]
[341643735,1731056878599,-21962.09806825,0.00026964,2]
[341643736,1731056878641,-200.0,0.00026965,2]
[341643737,1731056878683,-388.35460228,0.00026965,2]
[341643738,1731056878724,-766.17850848,0.00026966,2]
[341643739,1731056878765,-4622.94753778,0.00026966,2]
[341643740,1731056878807,-200.0,0.00026966,2]
[341643741,1731056878849,-3269.13526993,0.00026966,2]
[341643742,1731056878892,-3269.13526993,0.00026967,2]
[341643743,1731056878934,-1500.0,0.00026967,2]
[341643744,1731056878979,-150.0,0.00026967,2]
[341643745,1731056879021,-1748.25351638,0.00026967,2]
[341643746,1731056879063,-75441.32594882,0.00026968,2]
[341643747,1731056879111,-21962.09806825,0.00026968,2]
[341643748,1731056879154,-4547.866835,0.00026968,2]
[341643749,1731056879194,-686.1927435,0.00026968,2]
[341643750,1731056879235,-3196.7339367,0.00026968,2]
[341643751,1731056879276,-3285.0815612,0.00026968,2]
[341643752,1731056879444,-7993.5223439,0.00026968,2]
[341643753,1731056879487,-4536.02994097,0.00026968,2]
[341643754,1731056879528,-13932.60849435,0.00026968,2]
[341643755,1731056879570,-319.56389315,0.00026969,2]
[341643756,1731056879612,-4536.02994097,0.00026969,2]
[341643757,1731056879654,-200.0,0.0002697,2]
[341643758,1731056879700,-4924.38454325,0.0002697,2]
[341643759,1731056879741,-766.17850849,0.00026971,2]
[341643760,1731056879782,-3269.13526993,0.00026971,2]
[341643761,1731056879823,-9072.05988193,0.00026972,2]
[341643762,1731056879865,-500.0,0.00026973,2]
[341643763,1731056879907,-500.0,0.00026973,2]
[341643764,1731056879948,-319.56389315,0.00026973,2]
[341643765,1731056879991,-150.0,0.00026973,2]
[341643766,1731056880032,-1500.0,0.00026974,2]
[341643767,1731056880076,-3269.13526993,0.00026975,2]
[341643768,1731056880122,-1748.25351638,0.00026976,2]
[341643769,1731056880163,-921.0,0.00026976,2]
[341643770,1731056880205,-1258.0,0.00026976,2]
[341643771,1731056880247,-2909.0,0.00026976,2]
[341643772,1731056880288,-924.58,0.00026976,2]
[341643773,1731056880333,-2670.177,0.00026976,2]
[341643774,1731056880506,-1090.0,0.00026976,2]
[341643775,1731056880553,-396.52855496,0.00026976,2]
[341643776,1731056880599,-10782.80721049,0.00026977,2]
[341643777,1731056880643,-388.35460228,0.00026977,2]
[341643778,1731056880685,-388.35460228,0.00026977,2]
[341643779,1731056880727,-252.92742796,0.00026978,2]
[341643780,1731056880770,-3586.9495056,0.00026978,2]
[341643781,1731056880814,-13932.60849435,0.00026978,2]
[341643782,1731056880857,-159690.29636947,0.00026979,2]
[341643783,1731056880900,-75441.32594882,0.00026979,2]
[341643784,1731056880942,-1748.25351638,0.00026979,2]
[341643785,1731056880984,-9072.05988193,0.00026979,2]
[341643786,1731056881025,-2000.0,0.00026979,2]
[341643787,1731056881068,-200.0,0.00026979,2]
[341643788,1731056881113,-75441.32594882,0.00026979,2]
[341643789,1731056881155,-2876.07503833,0.00026979,2]
[341643790,1731056881197,-2298.53552545,0.0002698,2]
[341643791,1731056881238,-18761.54175903,0.0002698,2]
[341643792,1731056881278,-4536.02994097,0.00026981,2]
[341643793,1731056881320,-4536.02994097,0.00026982,2]
[341643794,1731056881361,-3263.25708549,0.00026982,2]
[341643795,1731056881554,-6526.51417099,0.00026982,2]
[341643796,1731056881597,-22595.97832736,0.00026982,2]
[341643797,1731056881639,-4116.9578406,0.00026982,2]
[341643798,1731056881681,-3686.0488462,0.00026982,2]
[341643799,1731056881722,-3255.1398518,0.00026982,2]
[341643800,1731056881764,-2824.2308574,0.00026982,2]
[341643801,1731056881805,-2393.3218631,0.00026982,2]
[341643802,1731056881847,-621.1761905,0.00026982,2]
[341643803,1731056881888,-556.1596375,0.00026982,2]
[341643804,1731056881931,-491.1430845,0.00026982,2]
[341643805,1731056881972,-426.1265315,0.00026982,2]
[341643806,1731056882015,-361.1099785,0.00026982,2]
[341643807,1731056882058,-3121.1769585,0.00026982,2]
[341643808,1731056882100,-3045.6199802,0.00026982,2]
[341643809,1731056882143,-2970.063002,0.00026982,2]
[341643810,1731056882184,-2894.5060237,0.00026982,2]
[341643811,1731056882226,-2818.9490454,0.00026982,2]
[341643812,1731056882266,-3207.4364268,0.00026982,2]
[341643813,1731056882308,-3129.7912924,0.00026982,2]
[341643814,1731056882351,-3052.1461581,0.00026982,2]
[341643815,1731056882393,-2974.5010237,0.00026982,2]
[341643816,1731056882568,-2896.8558893,0.00026982,2]
[341643817,1731056882612,-7804.590013,0.00026982,2]
[341643818,1731056882654,-7615.6576821,0.00026982,2]
[341643819,1731056882699,-2330.12761371,0.00026983,2]
[341643820,1731056882741,-13791.21315271,0.00026983,2]
[341643821,1731056882783,-766.17850848,0.00026984,2]
[341643822,1731056882826,-2876.07503833,0.00026985,2]
[341643823,1731056882869,-21962.09806825,0.00026985,2]
[341643824,1731056882913,-4924.38454325,0.00026985,2]
[341643825,1731056882955,-4924.38454325,0.00026985,2]
[341643826,1731056882998,-9245.89507557,0.00026986,2]
[341643827,1731056883041,-40026.0,0.00026986,2]
[341643828,1731056883092,-800.0,0.00026986,120]
[341643829,1731056883135,-766.17850849,0.00026987,2]
[341643830,1731056883182,-115851.99366865,0.00026987,2]
[341643831,1731056883226,-4622.94753778,0.00026987,2]
[341643832,1731056883269,-21962.09806825,0.00026988,2]
[341643833,1731056883314,-388.35460228,0.00026989,2]
[341643834,1731056883360,-6354.77540902,0.00026989,2]
[341643835,1731056883405,-18761.54175903,0.0002699,2]
[341643836,1731056883451,-396.52855496,0.0002699,2]
[341643837,1731056883496,-396.52855496,0.0002699,2]
[341643838,1731056883702,-200.0,0.00026991,2]
[341643839,1731056883747,-9072.05988193,0.00026991,2]
[341643840,1731056883791,-2298.53552545,0.00026991,2]
[341643841,1731056883836,-6526.51417099,0.00026991,2]
[341643842,1731056883880,-22595.97832736,0.00026992,2]
[341643843,1731056883923,-563654.95495698,0.00026992,2]
[341643844,1731056883967,-42100.86493558,0.00026992,2]
[341643845,1731056884010,-27216.17964578,0.00026993,2]
[341643846,1731056884054,-388.35460228,0.00026993,2]
[341643847,1731056884098,-3269.13526993,0.00026993,2]
[341643848,1731056884141,-200.0,0.00026994,2]
[341643849,1731056884184,-766.17850849,0.00026994,2]
[341643850,1731056884227,-13932.60849435,0.00026994,2]
[341643851,1731056884270,-3269.13526993,0.00026994,2]
[341643852,1731056884312,-21962.09806825,0.00026994,2]
[341643853,1731056884355,-1059.12923484,0.00026994,2]
[341643854,1731056884397,-200.0,0.00026994,2]
[341643855,1731056884439,-1748.25351638,0.00026995,2]
[341643856,1731056884480,-2876.07503833,0.00026995,2]
[341643857,1731056884522,-5469.99360272,0.00026995,2]
[341643858,1731056884565,-10782.80721049,0.00026995,2]
[341643859,1731056884741,-9072.05988193,0.00026996,2]
[341643860,1731056884783,-200.0,0.00026996,2]
[341643861,1731056884830,-1380.54705924,0.00026996,10]
[341643862,1731056884873,-26713.95307442,0.00026996,2]
[341643863,1731056884914,-200.0,0.00026996,2]
[341643864,1731056884955,-1241.25902243,0.00026997,2]
[341643865,1731056884997,-737288.86810236,0.00026997,2]
[341643866,1731056896706,150.5838706,0.00018123,2]
[341643868,1731056947442,217.06097413,0.00025,7]
[341643869,1731056948100,-200.0,0.00023,2]
[341643870,1731056948122,-2742.510172,0.00024566,2]
[341643871,1731056952143,-1045.969828,0.00024566,2]
[341643873,1731057001353,275.0,0.00019725,2]
[341643874,1731057004284,200.0,0.00023,2]
[341643876,1731057031346,-500.0,0.00025205,7]
[341643877,1731057031355,-280.0,0.000253,10]
[341643878,1731057031364,-5642.15140182,0.00025935,2]
[341643879,1731057031563,-9441.73785334,0.00025935,2]
[341643880,1731057031622,-2180.05433247,0.00025935,2]
[341643881,1731057031633,-405.35,0.00025935,2]
[341643891,1731057034687,213.37,0.00024566,2]
[341643893,1731057037421,-213.37,0.00025794,2]
[341643894,1731057037430,-3272.39918571,0.00025935,2]
[341643895,1731057037475,-488.66430191,0.00025935,2]
[341643896,1731057037487,-875.69451227,0.00025935,2]
[341643897,1731057037499,-345.0,0.00025935,2]
[341643898,1731057037510,-867.57638522,0.00025935,2]
[341643899,1731057037551,-17.57669208,0.00025935,2]
[341643900,1731057037643,-363.79533518,0.00025935,2]
[341643901,1731057037652,-1314.54,0.00025935,2]
[341643902,1731057037663,-520.12,0.00026148,2]
[341643903,1731057037673,-362.0,0.00026192,2]
[341643904,1731057037683,-362.0,0.00026192,2]
[341643905,1731057037692,-362.0,0.000262,2]
[341643906,1731057037702,-197.21,0.0002645,30]
[341643907,1731057037713,-723.88,0.00026464,2]
[341643908,1731057037722,-3308.0303,0.00026497,2]